fUSD/lending_fUSD_20250507
["ID","MTS","AMOUNT","RATE_DAILY","PERIOD"]
[360206111,1746622245538,-488.67,0.00019896,2]
[360206112,1746622245547,-450.0,0.00019896,2]
[360206113,1746622245557,-450.0,0.00019896,2]
[360206114,1746622245566,-450.0,0.00019896,2]
[360206115,1746622245576,-450.0,0.00019896,2]
[360206116,1746622245586,-450.0,0.00019896,2]
[360206117,1746622245595,-450.0,0.00019896,2]
[360206118,1746622245605,-450.0,0.00019896,2]
[360206119,1746622245615,-450.0,0.00019896,2]
[360206120,1746622245624,-450.0,0.00019896,2]
[360206121,1746622245634,-450.0,0.00019896,2]
[360206122,1746622245644,-450.0,0.00019896,2]
[360206123,1746622245653,-450.0,0.00019896,2]
[360206124,1746622245663,-450.0,0.00019896,2]
[360206125,1746622245672,-450.0,0.00019896,2]
[360206126,1746622245682,-450.0,0.00019896,2]
[360206127,1746622245693,-450.0,0.00019896,2]
[360206128,1746622245703,-450.0,0.00019896,2]
[360206129,1746622245714,-1079.35,0.00019896,2]
[360206130,1746622245725,-450.0,0.00019896,2]
[360206131,1746622245735,-450.0,0.00019896,2]
[360206132,1746622245744,-450.0,0.00019896,2]
[360206133,1746622245753,-450.0,0.00019896,2]
[360206134,1746622245763,-450.0,0.00019896,2]
[360206135,1746622245773,-450.0,0.00019896,2]
[360206136,1746622245782,-450.0,0.00019896,2]
[360206137,1746622245791,-450.0,0.00019896,2]
[360206138,1746622245801,-450.0,0.00019896,2]
[360206139,1746622245811,-1209.84,0.00019896,2]
[360206140,1746622245820,-450.0,0.00019896,2]
[360206141,1746622245830,-885.02,0.00019896,2]
[360206142,1746622245839,-10497.05,0.00019896,2]
[360206143,1746622245848,-1201.18,0.00019896,2]
[360206144,1746622245857,-450.0,0.00019896,2]
[360206145,1746622245866,-450.0,0.00019896,2]
[360206146,1746622245876,-450.0,0.00019896,2]
[360206147,1746622245885,-450.0,0.00019896,2]
[360206148,1746622245894,-3590.23,0.00019896,2]
[360206149,1746622245903,-450.0,0.00019896,2]
[360206150,1746622245913,-150.0,0.00019897,2]
[360206152,1746622245922,-23314.67576156,0.00019898,2]
[360206153,1746622245932,-431.9625222,0.00019899,2]
[360206154,1746622245941,-169.48411459,0.00019899,2]
[360206155,1746622245954,-166.55221696,0.00019899,2]
[360206156,1746622245965,-450.0,0.00019899,2]
[360206157,1746622245974,-733.81,0.00019899,2]
[360206158,1746622245983,-450.0,0.00019899,2]
[360206159,1746622245993,-450.0,0.00019899,2]
[360206160,1746622246002,-450.0,0.00019899,2]
[360206161,1746622246011,-1370.9788088,0.00019899,2]
[360206162,1746622246021,-426.882463,0.000199,2]
[360206163,1746622246030,-3705.1224908,0.000199,2]
[360206164,1746622246039,-9004.62626052,0.000199,2]
[360206165,1746622246048,-3206.30829826,0.000199,2]
[360206166,1746622246058,-194.77304099,0.000199,3]
[360206167,1746622246067,-8538.61852077,0.000199,2]
[360206168,1746622246077,-150.0,0.00019901,2]
[360206169,1746622246086,-150.0,0.00019903,2]
[360206170,1746622246095,-150.0,0.00019907,2]
[360206171,1746622246104,-150.0,0.00019917,2]
[360206172,1746622246114,-150.0,0.00019919,2]
[360206173,1746622246123,-150.0,0.00019924,2]
[360206174,1746622246136,-12500.0,0.00019929,2]
[360206175,1746622246145,-150.0,0.0001993,2]
[360206176,1746622246154,-12500.0,0.00019937,2]
[360206177,1746622246164,-150.0,0.00019943,2]
[360206178,1746622246175,-150.0,0.00019944,2]
[360206179,1746622246185,-150.0,0.00019945,2]
[360206180,1746622246194,-150.0,0.00019946,2]
[360206181,1746622246204,-12500.0,0.00019946,2]
[360206182,1746622246215,-150.0,0.00019948,2]
[360206183,1746622246225,-150.0,0.00019948,2]
[360206184,1746622246235,-150.0,0.00019948,2]
[360206185,1746622246244,-150.0,0.00019949,2]
[360206186,1746622246254,-150.0,0.00019951,2]
[360206187,1746622246264,-150.0,0.00019952,2]
[360206188,1746622246273,-150.0,0.00019955,2]
[360206189,1746622246283,-12500.0,0.00019955,2]
[360206190,1746622246293,-450.0,0.00019959,2]
[360206191,1746622246302,-450.0,0.00019959,2]
[360206192,1746622246312,-450.0,0.00019959,2]
[360206193,1746622246321,-450.0,0.00019959,2]
[360206194,1746622246331,-450.0,0.00019959,2]
[360206195,1746622246340,-450.0,0.00019959,2]
[360206196,1746622246350,-450.0,0.00019959,2]
[360206197,1746622246359,-450.0,0.00019959,2]
[360206198,1746622246369,-450.0,0.00019959,2]
[360206199,1746622246379,-450.0,0.00019959,2]
[360206200,1746622246388,-450.0,0.00019959,2]
[360206201,1746622246398,-301.98617385,0.00019959,2]
[360206202,1746622246407,-450.0,0.00019959,2]
[360206203,1746622246417,-450.0,0.00019959,2]
[360206204,1746622246427,-150.0,0.00019961,2]
[360206205,1746622246437,-150.0,0.00019963,2]
[360206206,1746622246447,-150.0,0.00019963,2]
[360206207,1746622246457,-12500.0,0.00019964,2]
[360206208,1746622246467,-150.0,0.00019964,2]
[360206209,1746622246476,-150.0,0.00019968,2]
[360206210,1746622246486,-150.0,0.00019969,2]
[360206211,1746622246496,-12500.0,0.00019973,2]
[360206212,1746622246505,-648.91289437,0.00019973,2]
[360206213,1746622246515,-3883.0,0.00019973,2]
[360206214,1746622246525,-810.0,0.00019973,2]
[360206215,1746622246534,-500.0,0.00019973,2]
[360206216,1746622246543,-500.0,0.00019973,2]
[360206217,1746622246553,-500.0,0.00019973,2]
[360206218,1746622246562,-500.0,0.00019973,2]
[360206219,1746622246571,-500.0,0.00019973,2]
[360206220,1746622246581,-500.0,0.00019973,2]
[360206221,1746622246590,-500.0,0.00019973,2]
[360206222,1746622246600,-500.0,0.00019973,2]
[360206223,1746622246609,-500.0,0.00019973,2]
[360206225,1746622246618,-500.0,0.00019973,2]
[360206227,1746622246627,-500.0,0.00019973,2]
[360206229,1746622246636,-500.0,0.00019973,2]
[360206231,1746622246646,-524.82050779,0.00019973,2]
[360206233,1746622246655,-500.0,0.00019973,2]
[360206235,1746622246665,-500.0,0.00019973,2]
[360206236,1746622246674,-505.88361203,0.00019973,2]
[360206237,1746622246684,-150.0,0.00019974,2]
[360206238,1746622246695,-150.0,0.00019975,2]
[360206239,1746622246704,-150.0,0.00019976,2]
[360206240,1746622246714,-150.0,0.00019976,2]
[360206241,1746622246724,-150.0,0.0001998,2]
[360206242,1746622246735,-150.0,0.0001998,2]
[360206243,1746622246744,-12500.0,0.00019981,2]
[360206244,1746622246754,-450.0,0.00019983,2]
[360206245,1746622246764,-450.0,0.00019983,2]
[360206246,1746622246774,-4335.01,0.00019983,2]
[360206247,1746622246784,-450.0,0.00019983,2]
[360206248,1746622246793,-450.0,0.00019983,2]
[360206249,1746622246803,-450.0,0.00019984,2]
[360206250,1746622246812,-4137.52,0.00019984,2]
[360206251,1746622246822,-2823.22,0.00019984,2]
[360206252,1746622246832,-150.0,0.00019986,2]
[360206253,1746622246841,-1103.9650408,0.00019986,2]
[360206254,1746622246851,-4041.4876477,0.00019986,2]
[360206255,1746622246860,-619.09863761,0.00019986,2]
[360206256,1746622246870,-39282.6945201,0.00019986,2]
[360206257,1746622246880,-176.33862059,0.00019988,2]
[360206258,1746622246890,-554.00269697,0.0001999,2]
[360206259,1746622246900,-176.33862059,0.0001999,2]
[360206260,1746622246909,-12500.0,0.0001999,2]
[360206261,1746622246919,-150.0,0.00019991,2]
[360206262,1746622246929,-150.0,0.00019995,2]
[360206263,1746622246938,-490.0,0.00019996,2]
[360206264,1746622246947,-450.0,0.00019996,2]
[360206265,1746622246957,-435.84926723,0.00019996,2]
[360206266,1746622246967,-450.0,0.00019996,2]
[360206267,1746622246979,-450.0,0.00019996,2]
[360206268,1746622246988,-157.79715384,0.00019996,2]
[360206269,1746622246998,-450.0,0.00019996,2]
[360206270,1746622247007,-250.0,0.00019996,2]
[360206271,1746622247017,-450.0,0.00019996,2]
[360206272,1746622247026,-510.18411999,0.00019996,2]
[360206273,1746622247035,-450.0,0.00019996,2]
[360206274,1746622247045,-408.15101168,0.00019996,2]
[360206275,1746622247055,-450.0,0.00019996,2]
[360206276,1746622247064,-450.0,0.00019996,2]
[360206277,1746622247073,-450.0,0.00019996,2]
[360206278,1746622247082,-450.0,0.00019996,2]
[360206279,1746622247091,-492.18022562,0.00019996,2]
[360206280,1746622247101,-468.97778158,0.00019996,2]
[360206281,1746622247111,-500.0,0.00019996,2]
[360206282,1746622247120,-450.0,0.00019996,2]
[360206283,1746622247134,-524.56910393,0.00019996,2]
[360206284,1746622247148,-490.0,0.00019996,2]
[360206285,1746622247158,-450.0,0.00019996,2]
[360206286,1746622247168,-450.0,0.00019996,2]
[360206287,1746622247177,-270.38704527,0.00019996,2]
[360206288,1746622247187,-366.03681086,0.00019996,2]
[360206289,1746622247196,-450.0,0.00019996,2]
[360206290,1746622247206,-450.0,0.00019996,2]
[360206291,1746622247216,-450.0,0.00019996,2]
[360206292,1746622247225,-450.0,0.00019996,2]
[360206293,1746622247234,-491.0667093,0.00019996,2]
[360206294,1746622247243,-450.0,0.00019996,2]
[360206295,1746622247253,-450.0,0.00019996,2]
[360206296,1746622247262,-301.24573407,0.00019996,2]
[360206297,1746622247272,-733.81,0.00019996,2]
[360206298,1746622247281,-450.0,0.00019996,2]
[360206299,1746622247290,-450.0,0.00019996,2]
[360206300,1746622247300,-450.0,0.00019996,2]
[360206301,1746622247309,-450.0,0.00019996,2]
[360206302,1746622247318,-450.0,0.00019996,2]
[360206303,1746622247328,-157.97450871,0.00019996,2]
[360206304,1746622247337,-450.0,0.00019996,2]
[360206305,1746622247347,-450.0,0.00019996,2]
[360206306,1746622247356,-450.0,0.00019996,2]
[360206307,1746622247367,-450.0,0.00019996,2]
[360206308,1746622247376,-518.86541945,0.00019996,2]
[360206309,1746622247385,-456.4,0.00019996,2]
[360206310,1746622247395,-450.0,0.00019996,2]
[360206311,1746622247404,-450.0,0.00019996,2]
[360206312,1746622247413,-288.2639635,0.00019996,2]
[360206313,1746622247423,-280953.72669426,0.00019996,2]
[360206314,1746622247432,-329.73995308,0.00019997,2]
[360206315,1746622247442,-450.0,0.00019997,2]
[360206316,1746622247452,-150.0,0.00019997,2]
[360206317,1746622247462,-150.0,0.00019997,2]
[360206318,1746622247471,-450.0,0.00019997,2]
[360206319,1746622247480,-450.0,0.00019997,2]
[360206320,1746622247489,-450.0,0.00019997,2]
[360206321,1746622247499,-450.0,0.00019997,2]
[360206322,1746622247508,-450.0,0.00019997,2]
[360206323,1746622247517,-500.0,0.00019997,2]
[360206324,1746622247570,-450.0,0.00019997,2]
[360206325,1746622247580,-450.0,0.00019997,2]
[360206326,1746622247589,-494.85,0.00019997,2]
[360206327,1746622247599,-450.0,0.00019997,2]
[360206328,1746622247608,-450.0,0.00019997,2]
[360206329,1746622247618,-450.0,0.00019997,2]
[360206330,1746622247626,-450.0,0.00019997,2]
[360206331,1746622247636,-450.0,0.00019997,2]
[360206332,1746622247645,-450.0,0.00019997,2]
[360206333,1746622247655,-450.0,0.00019997,2]
[360206334,1746622247664,-450.0,0.00019997,2]
[360206335,1746622247673,-450.0,0.00019997,2]
[360206336,1746622247682,-450.0,0.00019997,2]
[360206337,1746622247691,-301.8835328,0.00019997,2]
[360206338,1746622247700,-492.7,0.00019997,2]
[360206339,1746622247710,-450.0,0.00019997,2]
[360206340,1746622247719,-450.0,0.00019997,2]
[360206341,1746622247728,-450.0,0.00019997,2]
[360206342,1746622247738,-450.0,0.00019997,2]
[360206343,1746622247747,-450.0,0.00019997,2]
[360206344,1746622247757,-450.0,0.00019997,2]
[360206345,1746622247767,-450.0,0.00019997,2]
[360206346,1746622247776,-527.41678442,0.00019997,2]
[360206347,1746622247786,-450.0,0.00019997,2]
[360206348,1746622247795,-450.0,0.00019997,2]
[360206349,1746622247804,-450.0,0.00019997,2]
[360206350,1746622247814,-450.0,0.00019997,2]
[360206351,1746622247823,-450.0,0.00019997,2]
[360206352,1746622247833,-450.0,0.00019997,2]
[360206353,1746622247843,-450.0,0.00019997,2]
[360206354,1746622247853,-429.61194338,0.00019997,2]
[360206355,1746622247863,-450.0,0.00019997,2]
[360206356,1746622247872,-450.0,0.00019997,2]
[360206357,1746622247881,-450.0,0.00019997,2]
[360206358,1746622247890,-450.0,0.00019997,2]
[360206359,1746622247900,-200.23,0.00019997,2]
[360206360,1746622247909,-450.0,0.00019997,2]
[360206361,1746622247919,-450.0,0.00019997,2]
[360206362,1746622247928,-450.0,0.00019997,2]
[360206363,1746622247937,-450.0,0.00019997,2]
[360206364,1746622247946,-528.76,0.00019997,2]
[360206365,1746622247955,-450.0,0.00019997,2]
[360206366,1746622247965,-450.0,0.00019997,2]
[360206367,1746622247974,-450.0,0.00019997,2]
[360206368,1746622247983,-450.0,0.00019997,2]
[360206369,1746622247993,-450.0,0.00019997,2]
[360206370,1746622248003,-450.0,0.00019997,2]
[360206371,1746622248013,-343.62,0.00019997,2]
[360206372,1746622248022,-450.0,0.00019997,2]
[360206373,1746622248032,-450.0,0.00019997,2]
[360206374,1746622248042,-450.0,0.00019997,2]
[360206375,1746622248051,-450.0,0.00019997,2]
[360206376,1746622248060,-450.0,0.00019997,2]
[360206377,1746622248070,-450.0,0.00019997,2]
[360206378,1746622248080,-450.0,0.00019997,2]
[360206379,1746622248091,-450.0,0.00019997,2]
[360206380,1746622248100,-450.0,0.00019997,2]
[360206381,1746622248110,-465.68,0.00019997,2]
[360206382,1746622248120,-450.0,0.00019997,2]
[360206383,1746622248131,-397.40768691,0.00019997,2]
[360206384,1746622248141,-450.0,0.00019997,2]
[360206385,1746622248151,-450.0,0.00019997,2]
[360206386,1746622248160,-536.33296354,0.00019997,2]
[360206387,1746622248170,-450.0,0.00019997,2]
[360206388,1746622248181,-450.0,0.00019997,2]
[360206389,1746622248190,-450.0,0.00019997,2]
[360206390,1746622248200,-450.0,0.00019997,2]
[360206391,1746622248210,-450.0,0.00019997,2]
[360206392,1746622248220,-450.0,0.00019997,2]
[360206393,1746622248231,-450.0,0.00019997,2]
[360206394,1746622248240,-4137.52,0.00019997,2]
[360206395,1746622248250,-450.0,0.00019997,2]
[360206396,1746622248260,-450.0,0.00019997,2]
[360206397,1746622248270,-450.0,0.00019997,2]
[360206398,1746622248280,-450.0,0.00019997,2]
[360206399,1746622248290,-2823.22,0.00019997,2]
[360206400,1746622248300,-450.0,0.00019997,2]
[360206401,1746622248311,-450.0,0.00019997,2]
[360206402,1746622248320,-450.0,0.00019997,2]
[360206403,1746622248329,-450.0,0.00019997,2]
[360206404,1746622248339,-387.68864713,0.00019997,2]
[360206405,1746622248349,-450.0,0.00019997,2]
[360206406,1746622248359,-513.23406,0.00019997,2]
[360206407,1746622248368,-450.0,0.00019997,2]
[360206408,1746622248378,-450.0,0.00019997,2]
[360206409,1746622248388,-450.0,0.00019997,2]
[360206410,1746622248397,-450.0,0.00019997,2]
[360206411,1746622248407,-450.0,0.00019997,2]
[360206412,1746622248416,-34179.84,0.00019997,2]
[360206413,1746622248426,-34179.84,0.00019997,2]
[360206414,1746622248436,-450.0,0.00019997,2]
[360206415,1746622248445,-315.0398716,0.00019997,2]
[360206416,1746622248454,-450.0,0.00019997,2]
[360206417,1746622248463,-450.0,0.00019997,2]
[360206418,1746622248473,-450.0,0.00019997,2]
[360206419,1746622248482,-450.0,0.00019997,2]
[360206420,1746622248491,-450.0,0.00019997,2]
[360206421,1746622248501,-500.0,0.00019997,2]
[360206422,1746622248511,-291.29,0.00019997,2]
[360206423,1746622248520,-500.0,0.00019997,2]
[360206424,1746622248529,-450.0,0.00019997,2]
[360206425,1746622248538,-450.0,0.00019997,2]
[360206426,1746622248547,-500.0,0.00019997,2]
[360206427,1746622248557,-450.0,0.00019997,2]
[360206428,1746622248566,-505.49,0.00019997,2]
[360206429,1746622248575,-450.0,0.00019997,2]
[360206430,1746622248584,-505.49,0.00019997,2]
[360206431,1746622248594,-450.0,0.00019997,2]
[360206432,1746622248604,-450.0,0.00019997,2]
[360206433,1746622248613,-450.0,0.00019997,2]
[360206434,1746622248622,-450.0,0.00019997,2]
[360206435,1746622248631,-642.12,0.00019997,2]
[360206436,1746622248641,-642.12,0.00019997,2]
[360206437,1746622248652,-450.0,0.00019997,2]
[360206438,1746622248661,-450.0,0.00019997,2]
[360206439,1746622248671,-222.84,0.00019997,2]
[360206440,1746622248680,-301.6,0.00019997,2]
[360206441,1746622248690,-450.0,0.00019997,2]
[360206442,1746622248699,-259.36,0.00019997,2]
[360206443,1746622248708,-450.0,0.00019997,2]
[360206444,1746622248717,-515.78,0.00019997,2]
[360206445,1746622248726,-450.0,0.00019997,2]
[360206446,1746622248736,-515.78,0.00019997,2]
[360206447,1746622248745,-450.0,0.00019997,2]
[360206448,1746622248754,-236.05190132,0.00019997,2]
[360206449,1746622248764,-164.5,0.00019997,2]
[360206450,1746622248773,-514.60505692,0.00019997,2]
[360206451,1746622248783,-450.0,0.00019997,2]
[360206452,1746622248791,-450.0,0.00019997,2]
[360206453,1746622248800,-450.0,0.00019997,2]
[360206454,1746622248810,-450.0,0.00019997,2]
[360206455,1746622248819,-450.0,0.00019997,2]
[360206456,1746622248828,-450.0,0.00019997,2]
[360206457,1746622248837,-450.0,0.00019997,2]
[360206458,1746622248846,-450.0,0.00019997,2]
[360206459,1746622248855,-450.0,0.00019997,2]
[360206460,1746622248863,-450.0,0.00019997,2]
[360206461,1746622248873,-450.0,0.00019997,2]
[360206462,1746622248882,-450.0,0.00019997,2]
[360206463,1746622248891,-450.0,0.00019997,2]
[360206464,1746622248900,-450.0,0.00019997,2]
[360206465,1746622248909,-450.0,0.00019997,2]
[360206466,1746622248918,-450.0,0.00019997,2]
[360206467,1746622248927,-450.0,0.00019997,2]
[360206468,1746622248936,-3796.48350019,0.00019997,2]
[360206469,1746622249474,-150.0,0.00019731,2]
[360206470,1746622249483,-102.58751994,0.00019731,2]
[360206471,1746622249721,-150.0,0.00019727,2]
[360206472,1746622249731,-47.41248006,0.00019731,2]
[360206473,1746622249741,-150.0,0.00019734,2]
[360206474,1746622249750,-150.0,0.00019736,2]
[360206475,1746622249760,-150.0,0.00019743,2]
[360206476,1746622249770,-150.0,0.00019745,2]
[360206477,1746622249780,-150.0,0.00019746,2]
[360206478,1746622249789,-150.0,0.00019747,2]
[360206479,1746622249799,-150.0,0.00019748,2]
[360206480,1746622249809,-150.0,0.00019748,2]
[360206481,1746622249818,-150.0,0.0001975,2]
[360206482,1746622249828,-150.0,0.00019751,2]
[360206483,1746622249837,-150.0,0.00019768,2]
[360206484,1746622249847,-150.0,0.00019768,2]
[360206485,1746622249856,-36.54126866,0.00019768,2]
[360206486,1746622249887,-150.0,0.00019729,2]
[360206487,1746622249896,-113.45873134,0.00019768,2]
[360206488,1746622249906,-150.0,0.00019769,2]
[360206489,1746622249915,-150.0,0.00019772,2]
[360206490,1746622249925,-150.0,0.00019776,2]
[360206491,1746622249935,-150.0,0.00019777,2]
[360206492,1746622249945,-150.0,0.00019784,2]
[360206493,1746622249954,-1142.0,0.00019788,2]
[360206494,1746622249963,-150.0,0.00019788,2]
[360206495,1746622249972,-150.0,0.00019788,2]
[360206496,1746622249982,-150.0,0.00019791,2]
[360206497,1746622249991,-150.0,0.00019795,2]
[360206498,1746622250001,-150.0,0.00019799,2]
[360206499,1746622250010,-150.0,0.00019799,2]
[360206500,1746622250020,-150.0,0.00019802,2]
[360206501,1746622250029,-132.13790339,0.00019804,2]
[360206502,1746622250051,-150.0,0.00019745,2]
[360206503,1746622250061,-17.86209661,0.00019804,2]
[360206504,1746622250070,-143.46387652,0.00019804,2]
[360206505,1746622288731,1546.11,0.00018821,2]
[360206506,1746622299324,23900.0,0.00018821,2]
[360206509,1746622350545,1088.68,0.00018892,2]
[360206510,1746622390050,1852.42,0.00018821,2]
[360206511,1746622441405,500.0,0.00029589,30]
[360206512,1746622441692,500.0,0.00029863,30]
[360206513,1746622449771,300.0,0.0003,30]
[360206514,1746622484650,1333.67,0.00018867,2]
[360206515,1746622489402,159.17,0.00018867,2]
[360206516,1746622546720,632.87,0.00018852,2]
[360206517,1746622546927,632.87,0.00018857,2]
[360206518,1746622547153,632.87,0.00018862,2]
[360206519,1746622547363,632.87,0.00018867,2]
[360206520,1746622547575,632.87,0.00018872,2]
[360206521,1746622547796,632.87,0.00018877,2]
[360206522,1746622548039,632.87,0.00018882,2]
[360206523,1746622548278,632.87,0.00018887,2]
[360206524,1746622548519,632.87,0.00018892,2]
[360206525,1746622548760,632.87,0.00018897,2]
[360206526,1746622549000,632.87,0.00018902,2]
[360206527,1746622549373,632.87,0.00018907,2]
[360206528,1746622549447,632.87,0.00018912,2]
[360206529,1746622549657,632.87,0.00018917,2]
[360206530,1746622549994,189.72,0.00018892,2]
[360206531,1746622550089,632.87,0.00018922,2]
[360206532,1746622550593,632.87,0.00018927,2]
[360206533,1746622550633,632.87,0.00018932,2]
[360206534,1746622550768,632.87,0.00018937,2]
[360206535,1746622550803,189.72,0.00025977,120]
[360206536,1746622550985,632.87,0.00018942,2]
[360206537,1746622551024,189.72,0.00028339,120]
[360206538,1746622551212,632.87,0.00018947,2]
[360206539,1746622559066,5971.44,0.00018853,2]
[360206540,1746622635750,178.98,0.0001944,2]
[360206541,1746622650866,3362.75,0.00018845,2]
[360206542,1746622658345,4254.89,0.00018892,2]
[360206543,1746622676084,173.77,0.00019178,2]
[360206544,1746622679430,3500.0,0.0003,30]
[360206545,1746622684135,2880.59,0.00018845,2]
[360206546,1746622689441,453.798516,0.00019458,2]
[360206547,1746622713068,22960.47,0.00018844,2]
[360206548,1746622718651,166.31,0.00019409,2]
[360206549,1746622759729,2364.94,0.00019044,2]
[360206550,1746622774559,150.0,0.00018986,7]
[360206551,1746622814480,12090.2444614,0.00018,2]
[360206552,1746622820580,1333.0,0.00029041,120]
[360206553,1746622842957,183.0,0.00018835,2]
[360206554,1746622859653,1205.0,0.000194,2]
[360206555,1746622888528,678.216569,0.00019458,2]
[360206556,1746622929562,500.0,0.00018835,2]
[360206557,1746622930575,502.6993727,0.00019454,2]
[360206558,1746622936783,708.97,0.00016975,2]
[360206559,1746622936988,708.97,0.00019238,2]
[360206560,1746622939108,156.67,0.00016712,2]
[360206561,1746622939785,673.46,0.00018838,2]
[360206562,1746622962698,1249.36,0.00018892,2]
[360206563,1746622982124,200.0,0.00018,4]
[360206564,1746622982411,325.53227529,0.00017721,4]
[360206565,1746623004589,2784.99,0.00018892,2]
[360206566,1746623015126,250.0,0.00018828,2]
[360206567,1746623018189,1500.0,0.00019178,2]
[360206568,1746623032232,250.0,0.00017,2]
[360206569,1746623033279,300.0,0.00019,2]
[360206570,1746623053702,150.0,0.00018892,2]
[360206571,1746623057502,21068.29,0.00018892,2]
[360206572,1746623059674,1000.0,0.0001883,2]
[360206573,1746623067028,200.0,0.00018892,2]
[360206574,1746623075997,1688.27,0.0001883,2]
[360206575,1746623127744,647.14797938,0.0003013,120]
[360206576,1746623130372,2471.89,0.00018842,2]
[360206577,1746623157961,1652.62,0.00018842,2]
[360206578,1746623185909,170.41,0.00015074,2]
[360206579,1746623186129,170.41,0.00017586,2]
[360206580,1746623211752,392.56,0.00018846,2]
[360206581,1746623319372,23900.0,0.00018847,2]
[360206582,1746623408606,4000.0,0.00018892,2]
[360206592,1746623432417,-507.38350888,0.00019528,2]
[360206593,1746623432428,-250.0,0.00019535,2]
[360206594,1746623432437,-151.0,0.00019556,2]
[360206595,1746623432447,-528.44296919,0.00019556,2]
[360206596,1746623432456,-1205.0,0.000196,2]
[360206597,1746623432465,-202.46437839,0.00019656,2]
[360206598,1746623432475,-507.38350888,0.00019662,2]
[360206599,1746623432485,-1200.0,0.00019687,2]
[360206600,1746623432494,-300.0,0.00019687,2]
[360206601,1746623432504,-528.44296918,0.00019687,2]
[360206602,1746623432514,-151.0,0.00019688,2]
[360206603,1746623432525,-151.0,0.00019688,2]
[360206604,1746623432535,-207.4,0.00019688,2]
[360206605,1746623432544,-151.0,0.00019688,2]
[360206606,1746623432554,-668.65185757,0.00019688,2]
[360206607,1746623432563,-1925.04285791,0.00019699,2]
[360206608,1746623432575,-350.79647441,0.00019699,2]
[360206609,1746623432686,-792.49969547,0.00019699,2]
[360206610,1746623432696,-1447.90030281,0.000197,2]
[360206611,1746623432708,-853.33969719,0.000197,2]
[360206612,1746623432718,-798.0,0.00019712,2]
[360206613,1746623432728,-771.7974,0.00019753,2]
[360206614,1746623432738,-1453.0,0.00019768,2]
[360206615,1746623432747,-582.0,0.00019768,2]
[360206616,1746623432757,-551.0,0.00019768,2]
[360206617,1746623432768,-79.61209454,0.00019768,2]
[360206662,1746623438253,-836.38790546,0.00019768,2]
[360206663,1746623438263,-879.0,0.00019774,2]
[360206664,1746623438272,-153.0,0.00019774,2]
[360206665,1746623438281,-1142.0,0.00019774,2]
[360206666,1746623438291,-3134.5953,0.00019777,2]
[360206667,1746623438300,-927.0,0.00019788,2]
[360206668,1746623438309,-507.38350888,0.00019796,2]
[360206669,1746623438318,-1205.0,0.000198,2]
[360206670,1746623438327,-6.53612348,0.00019804,2]
[360206671,1746623438337,-1204.26052894,0.00019836,2]
[360206672,1746623438348,-2291.99489755,0.00019836,2]